bitfinex/quotes_ETHUSD_20250620
["timestamp","ask_amount","ask_price","bid_price","bid_amount"]
[1750446057946,3.2455,2420.8,2420.6,4.13120713]
[1750446057947,8.867,2420.8,2420.6,4.13120713]
[1750446058119,8.867,2420.8,2420.7,4.13103647]
[1750446058652,8.867,2420.8,2420.6,4.13110409]
[1750446058852,8.867,2420.8,2420.4,0.7948]
[1750446059152,8.867,2420.8,2420.7,4.13103647]
[1750446061454,8.9251,2420.8,2420.6,4.13111074]
[1750446061836,0.0581,2420.7,2420.6,4.13111074]
[1750446062039,8.9241,2420.7,2420.6,4.13111074]
[1750446063080,7.024,2420.7,2420.6,4.13120713]
[1750446063368,10.0581,2421.1,2420.9,4.13063052]
[1750446063679,10.0581,2421.1,2421.0,4.13052457]
[1750446063982,18.869,2421.1,2421.0,4.13052457]
[1750446064170,18.9271,2421.1,2420.9,4.13062636]
[1750446064344,18.9271,2421.1,2421.0,4.13052457]
[1750446065076,18.869,2421.1,2421.0,4.13052457]
[1750446065242,18.9271,2421.1,2421.0,4.13052457]
[1750446065444,18.9271,2421.1,2420.9,4.1305832]
[1750446065943,18.9271,2421.1,2421.0,4.13052457]
[1750446066561,18.9271,2421.1,2420.9,4.13060253]
[1750446066777,18.9271,2421.1,2421.0,4.13052457]
[1750446067292,10.745,2421.2,2421.1,4.13035397]
[1750446067473,1.842,2421.5,2421.3,4.12997647]
[1750446067665,1.842,2421.5,2421.4,4.17113454]
[1750446067881,8.877,2421.5,2421.4,4.12984224]
[1750446068580,8.877,2421.5,2421.1,4.13026455]
[1750446068780,0.0581,2421.3,2421.1,4.13027418]
[1750446068988,0.0581,2421.1,2421.0,4.1304347]
[1750446069167,0.0581,2421.1,2421.0,4.13052457]
[1750446070579,7.032,2421.2,2421.1,4.13035397]
[1750446070882,7.0901,2421.2,2421.1,4.13035397]
[1750446071783,2.479,2421.3,2421.2,4.13010434]
[1750446071947,21.4211,2421.3,2421.2,4.13010434]
[1750446072147,21.4211,2421.3,2421.1,4.13027082]
[1750446072347,21.4211,2421.3,2421.2,4.13018338]
[1750446072542,0.8793,2421.7,2421.5,4.12967169]
[1750446072759,8.883,2421.6,2421.5,4.12967169]
[1750446072956,0.0581,2422.0,2421.8,4.12907992]
[1750446073196,1.9001,2421.9,2421.8,4.12907992]
[1750446073373,0.0581,2422.1,2422.0,4.12881915]
[1750446073579,2.14599847,2422.4,2422.3,4.1283078]
[1750446073779,12.66569847,2422.4,2422.3,4.1283078]
[1750446074284,10.18669847,2422.4,2422.3,4.1283078]
[1750446074593,10.18569847,2422.4,2422.3,4.1283078]
[1750446074767,10.18469847,2422.4,2422.3,4.1283078]
[1750446075886,10.18469847,2422.4,2421.8,4.12916012]
[1750446076200,10.24279847,2422.4,2422.2,4.12838485]
[1750446076415,4.1285788,2422.2,2421.9,2.67999919]
[1750446076624,10.0,2421.8,2421.6,4.12942201]
[1750446076939,0.0581,2421.6,2421.0,2.67999919]
[1750446077191,12.1241,2421.7,2421.3,4.12991435]
[1750446077374,16.25343338,2421.7,2421.3,4.12991435]
[1750446077569,0.0581,2421.6,2421.5,4.12967169]
[1750446077814,8.88,2421.6,2421.5,4.12953806]
[1750446078297,8.88,2421.6,2421.4,4.12976822]
[1750446078594,8.88,2421.6,2421.5,4.12967169]
[1750446079199,8.9381,2421.6,2421.4,4.12976191]
[1750446079366,8.88,2421.6,2421.4,4.12976191]
[1750446079697,0.0581,2421.5,2421.4,4.12984224]
[1750446079868,0.0581,2421.5,2421.3,4.12991957]
[1750446080391,11.359,2421.6,2421.5,4.12967169]
[1750446080776,8.874,2421.6,2421.4,4.12980384]
[1750446081097,8.874,2421.6,2421.5,4.12951259]
[1750446081902,8.9321,2421.6,2421.0,4.13052457]
[1750446082201,0.0581,2421.5,2421.3,4.12985493]
[1750446082698,0.0581,2421.5,2421.4,4.12981584]
[1750446082994,0.0581,2421.6,2421.5,4.12967169]
[1750446083215,8.876,2421.5,2421.4,4.12974575]
[1750446083598,8.9341,2421.5,2421.4,4.12974575]
[1750446084092,8.876,2421.5,2421.4,4.12974575]
[1750446084276,8.889,2421.5,2421.4,5.70761189]
[1750446085505,8.889,2421.5,2421.4,5.78761189]
[1750446086264,8.889,2421.5,2421.4,4.20984224]
[1750446086469,8.889,2421.5,2421.4,6.88984143]
[1750446086890,11.4295,2421.5,2421.4,6.88984143]
[1750446087093,11.368,2421.5,2421.4,6.88984143]
[1750446087403,8.889,2421.5,2421.4,6.88984143]
[1750446087607,8.882,2421.5,2421.4,7.99181991]
[1750446087970,0.7751,2422.0,2421.9,4.12898963]
[1750446088179,10.0,2421.9,2421.6,4.12935392]
[1750446088504,10.0,2421.9,2421.7,4.1293202]
[1750446088505,0.0615,2421.8,2421.7,4.1293202]
[1750446088707,10.0,2421.9,2421.8,4.12916012]
[1750446088879,0.0615,2422.1,2421.9,4.12898963]
[1750446089079,8.886,2422.0,2421.9,4.12898963]
[1750446089382,8.884,2422.0,2421.9,4.12898963]
[1750446089574,8.884,2422.0,2421.9,4.68833921]
[1750446089773,8.884,2422.0,2421.9,5.49863921]
[1750446090412,8.884,2422.0,2421.9,5.53992452]
[1750446090584,8.884,2422.0,2421.9,4.68833921]
[1750446091607,12.479,2422.6,2421.9,4.68833921]
[1750446091608,1.859,2422.1,2422.0,4.12881915]
[1750446091910,8.88,2422.1,2422.0,5.01053088]
[1750446092495,1.859,2422.1,2422.0,5.79903088]
[1750446092806,8.877,2422.1,2422.0,5.79903088]
[1750446093005,1.859,2422.1,2422.0,5.84031435]
[1750446093242,8.877,2422.1,2422.0,5.84031435]
[1750446093410,8.877,2422.1,2422.0,5.79903088]
[1750446094299,8.9385,2422.1,2421.8,4.91749364]
[1750446094498,0.0615,2421.8,2421.4,4.20977114]
[1750446094811,0.0615,2421.5,2421.4,4.20977114]
[1750446095007,1.9205,2421.5,2421.4,0.08]
[1750446095427,18.53017169,2421.5,2421.4,0.08]
[1750446095727,19.33297169,2421.5,2421.4,0.08]
[1750446096213,64.62799268,2421.5,2421.4,0.08]
[1750446096397,64.62799268,2421.5,2421.4,0.07999919]
[1750446096798,61.38331397,2421.5,2421.4,0.07999919]
[1750446096975,65.73131397,2421.5,2421.4,0.07999919]
[1750446097511,61.38331397,2421.5,2421.4,0.07999919]
[1750446097878,59.52431397,2421.5,2421.4,0.07999919]
[1750446098074,68.42031397,2421.5,2421.4,0.07999919]
[1750446098303,68.41631397,2421.5,2421.4,0.07999919]
[1750446098703,68.8230222,2421.5,2421.4,0.07999919]
[1750446099500,68.8220222,2421.5,2421.4,0.07999919]
[1750446100730,59.9310222,2421.5,2421.4,0.07999919]
[1750446101037,44.28767992,2421.5,2421.4,0.07999919]
[1750446101834,44.83767992,2421.5,2421.4,0.07999919]
[1750446102033,54.83767992,2421.5,2421.4,0.07999919]
[1750446102231,44.83767992,2421.5,2421.4,0.07999919]
[1750446102431,14.83867992,2421.5,2421.4,0.07999919]
[1750446102833,24.83867992,2421.5,2421.4,0.07999919]
[1750446103333,2.32720823,2421.5,2421.4,0.07999919]
[1750446103538,13.48287992,2421.5,2421.4,0.07999919]
[1750446103927,19.35320823,2421.5,2421.4,0.07999919]
[1750446104438,23.07617169,2421.5,2421.4,0.07999919]
[1750446104605,18.9465,2421.5,2421.4,0.07999919]
[1750446105238,10.742,2421.6,2421.4,4.20984143]
[1750446105438,8.88,2421.5,2421.4,4.20984143]
[1750446108040,1.9205,2421.5,2421.4,0.07999919]
[1750446108225,8.875,2421.5,2421.4,4.20984143]
[1750446108537,10.742,2421.6,2421.5,4.12967169]
[1750446108842,19.621,2421.6,2421.5,4.12967169]
[1750446111739,19.621,2421.6,2421.5,5.040613]
[1750446112239,19.621,2421.6,2421.5,4.12967169]
[1750446114209,10.742,2421.6,2421.5,4.12967169]
[1750446114405,19.594,2421.6,2421.5,4.12967169]
[1750446114638,12.588,2421.6,2421.5,6.80967088]
[1750446114806,19.59,2421.6,2421.5,6.80967088]
[1750446115152,19.59,2421.6,2421.5,7.98861211]
[1750446115334,19.589,2421.6,2421.5,8.00911211]
[1750446115637,19.589,2421.6,2421.5,7.98861211]
[1750446116363,32.1262,2421.6,2421.4,0.07999919]
[1750446116525,17.21687169,2421.5,2421.4,0.07999919]
[1750446117203,48.00927169,2421.5,2421.4,0.07999919]
[1750446118019,4.13116588,2420.7,2420.2,7.63617563]
[1750446118346,8.865,2420.6,2420.5,4.13137781]
[1750446118650,2.5372,2421.0,2420.7,4.13103647]
[1750446118811,21.347,2420.9,2420.8,4.13078285]
[1750446119005,18.867,2420.9,2420.8,4.13078285]
[1750446119522,18.9242,2420.9,2420.7,4.13095805]
[1750446120342,2.48,2421.1,2421.0,4.13052457]
[1750446120512,8.87,2421.1,2421.0,4.13052457]
[1750446121009,10.742,2421.6,2421.4,4.12973256]
[1750446121339,0.0572,2421.4,2421.2,4.13009454]
[1750446121542,7.031,2421.3,2421.2,4.13002013]
[1750446121924,10.742,2421.6,2421.5,4.12967169]
[1750446122109,19.625,2421.6,2421.5,4.12967169]
[1750446124248,19.6822,2421.6,2421.5,4.12967169]
[1750446124553,22.1622,2421.6,2421.2,4.13017287]
[1750446124721,22.105,2421.6,2421.0,0.7915]
[1750446125049,0.0572,2421.5,2421.3,4.1299072]
[1750446125246,7.036,2421.4,2421.3,4.1299072]
[1750446127053,9.5732,2421.4,2421.3,4.1299072]
[1750446127942,9.516,2421.4,2421.3,4.1299072]
[1750446128835,7.036,2421.4,2421.3,4.1299072]
[1750446129036,15.068,2421.6,2421.3,4.1299072]
[1750446129037,10.742,2421.6,2421.5,4.12967169]
[1750446129346,19.619,2421.6,2421.5,4.96187169]
[1750446130542,19.619,2421.6,2421.5,4.12967169]
[1750446130543,22.1562,2421.6,2421.5,4.12967169]
[1750446130723,22.1562,2421.6,2421.4,4.12977225]
[1750446130939,22.1562,2421.6,2421.5,4.12967169]
[1750446131446,22.099,2421.6,2421.3,4.12993847]
[1750446131647,0.0572,2421.5,2421.1,2.67999919]
[1750446131847,9.5762,2421.4,2421.3,4.1299332]
[1750446132254,12.588,2421.6,2421.5,4.12967169]
[1750446132427,22.1632,2421.6,2421.4,4.12975059]
[1750446132629,0.0572,2421.5,2421.4,4.12975059]
[1750446133020,22.106,2421.6,2421.3,4.12987213]
[1750446133221,0.0572,2421.5,2421.4,4.12974837]
[1750446133420,13.222,2421.6,2421.5,4.12967169]
[1750446133638,22.101,2421.6,2421.5,4.12967169]
[1750446134254,22.1582,2421.6,2421.5,4.12967169]
[1750446134551,19.621,2421.6,2421.5,4.12967169]
[1750446135461,19.6782,2421.6,2421.5,4.12967169]
[1750446136458,19.621,2421.6,2421.5,4.12967169]
[1750446137170,22.101,2421.6,2421.5,4.12967169]
[1750446140277,10.742,2421.6,2421.5,5.03110902]
[1750446140576,19.605,2421.6,2421.5,5.03110902]
[1750446140977,12.588,2421.6,2421.5,5.03110902]
[1750446141180,19.604,2421.6,2421.5,4.12967169]
[1750446142570,19.604,2421.6,2421.5,6.80967088]
[1750446144791,12.588,2421.6,2421.5,6.80967088]
[1750446144989,19.597,2421.6,2421.5,6.80967088]
[1750446146574,12.588,2421.6,2421.5,6.8509641]
[1750446146774,19.588,2421.6,2421.5,8.70794745]
[1750446147555,12.588,2421.6,2421.5,8.70794745]
[1750446147758,8.846,2421.6,2421.5,23.4609448]
[1750446148057,10.743,2422.6,2421.9,4.91148963]
[1750446148272,10.743,2422.6,2422.5,4.12796697]
[1750446148569,19.653,2422.6,2422.5,4.12796697]
[1750446148773,19.591,2422.6,2422.5,4.12796697]
[1750446149272,0.062,2422.5,2422.4,4.1281047]
[1750446149484,2.542,2422.5,2422.4,4.1281047]
[1750446149660,3.30867945,2422.5,2422.4,4.1281047]
[1750446149861,0.8604,2422.4,2422.3,2.67999919]
[1750446150056,11.1099957,2422.4,2422.3,2.67999919]
[1750446150361,11.10995068,2422.4,2422.3,6.80830699]
[1750446150836,11.10958455,2422.4,2422.3,2.67999919]
[1750446150961,11.10966704,2422.4,2422.3,2.67999919]
[1750446151158,10.7265339,2422.4,2422.3,2.67999919]
[1750446151455,2.48,2422.2,2421.7,4.12925154]
[1750446151661,2.48,2422.2,2421.0,0.8246]
[1750446151662,2.48,2421.8,2421.0,0.8246]
[1750446151868,10.0,2421.6,2421.4,4.12972004]
[1750446152087,17.38602022,2421.5,2421.4,4.12972004]
[1750446152395,17.83100565,2421.5,2421.4,4.12972004]
[1750446152691,17.83098878,2421.5,2421.4,4.12972004]
[1750446152899,17.8309325,2421.5,2421.4,4.12972004]
[1750446153478,17.83091272,2421.5,2421.4,4.12972004]
[1750446153798,17.44794878,2421.5,2421.4,4.12972004]
[1750446153967,17.83089703,2421.5,2421.4,4.12972004]
[1750446154364,17.83089703,2421.5,2421.1,4.13024273]
[1750446154566,0.062,2421.3,2421.2,4.13007916]
[1750446154801,7.001,2421.3,2421.2,4.13007916]
[1750446155005,7.001,2421.3,2421.2,4.93287916]
[1750446155313,0.062,2421.8,2421.7,4.12933063]
[1750446155626,19.90565729,2421.8,2421.7,4.12933063]
[1750446155898,19.67589158,2421.8,2421.7,4.12933063]
[1750446156578,19.67595899,2421.8,2421.7,4.12933063]
[1750446157294,19.2930132,2421.8,2421.7,4.12933063]
[1750446157466,19.67601996,2421.8,2421.7,4.12933063]
[1750446157803,0.76600854,2421.8,2421.7,4.12933063]
[1750446158002,0.062,2422.5,2421.7,0.96905306]
[1750446158167,9.61313521,2422.4,2421.9,4.12891585]
[1750446158496,10.38307695,2422.3,2422.2,4.12847824]
[1750446158701,10.76606945,2422.3,2422.2,4.12847824]
[1750446158861,10.76607015,2422.3,2422.2,4.12847824]
[1750446159063,10.3829932,2422.3,2422.2,4.12847824]
[1750446159294,10.76599331,2422.3,2422.2,4.12847824]
[1750446159460,10.76598163,2422.3,2422.2,4.12847824]
[1750446159667,10.76593029,2422.3,2422.2,4.12847824]
[1750446160002,10.82747869,2422.3,2421.7,5.03643576]
[1750446160188,6.999,2422.2,2422.1,4.12857488]
[1750446160398,7.38110886,2422.2,2422.1,4.12857488]
[1750446160711,6.999,2422.2,2422.1,4.12857488]
[1750446161767,8.845,2422.2,2422.1,4.12864869]
[1750446161962,1.846,2422.2,2422.1,4.12864869]
[1750446162162,1.846,2422.2,2422.1,5.09588826]
[1750446162399,8.845,2422.2,2422.1,5.05460434]
[1750446162799,1.846,2422.2,2422.1,5.05460434]
[1750446163002,10.743,2422.6,2422.5,4.12796697]
[1750446163206,10.743,2422.6,2422.5,6.80796616]
[1750446163425,17.742,2422.6,2422.5,8.31440335]
[1750446165031,17.804,2422.6,2422.5,2.67999919]
[1750446165634,17.804,2422.6,2422.5,6.80796616]
[1750446166327,17.804,2422.6,2422.5,4.12796697]
[1750446167312,17.742,2422.6,2422.4,4.12809267]
[1750446167497,0.062,2422.5,2422.4,4.12809267]
[1750446167897,10.743,2422.6,2422.5,4.12796697]
[1750446168128,19.649,2422.6,2422.5,4.12796697]
[1750446168793,19.587,2422.6,2422.4,4.12801801]
[1750446168998,19.649,2422.6,2422.5,4.12796697]
[1750446169198,19.587,2422.6,2422.5,4.12796697]
[1750446169703,19.649,2422.6,2422.5,4.12796697]
[1750446170233,19.587,2422.6,2422.2,2.67999919]
[1750446170431,0.062,2422.5,2422.4,4.12813738]
[1750446170839,19.587,2422.6,2422.5,4.12796697]
[1750446171602,19.649,2422.6,2422.5,4.12796697]
[1750446171941,0.062,2422.5,2422.4,4.12806991]
[1750446172230,0.062,2422.4,2422.0,4.12881915]
[1750446172435,7.059,2422.3,2422.2,4.12847335]
[1750446172731,6.997,2422.3,2421.9,2.67999919]
[1750446173041,0.062,2422.2,2422.1,4.12849096]
[1750446173399,6.997,2422.3,2422.0,4.1287278]
[1750446173735,6.997,2422.3,2422.1,4.12864869]
[1750446173736,0.062,2422.2,2422.1,4.12864869]
[1750446174659,0.0587,2422.2,2422.0,4.12874603]
[1750446174936,0.0587,2422.2,2422.1,4.12864869]
[1750446175100,7.0557,2422.2,2422.1,4.12864869]
[1750446175932,7.0557,2422.2,2422.0,4.12871604]
[1750446176141,7.0557,2422.2,2422.1,4.12864869]
[1750446176340,0.0587,2422.1,2422.0,4.12871604]
[1750446176634,0.8121,2422.0,2421.9,2.67999919]
[1750446176841,16.26199493,2422.0,2421.5,4.1295876]
[1750446177039,0.7697,2421.4,2421.1,4.13027988]
[1750446177251,19.60434701,2421.3,2421.0,4.13040121]
[1750446177556,19.60434701,2421.3,2420.5,0.8172]
[1750446177557,0.76334701,2421.2,2420.5,0.8172]
[1750446177759,0.0587,2420.9,2420.8,4.13078819]
[1750446177903,7.0557,2420.9,2420.8,4.13078819]
[1750446178239,6.997,2420.9,2420.8,4.13078819]
[1750446179352,11.5107,2421.4,2420.8,4.13078819]
[1750446179353,11.5694,2421.4,2420.8,4.95704041]
[1750446179659,19.28122466,2421.3,2421.2,4.13008462]
[1750446179865,18.8997,2421.3,2421.2,4.13008462]
[1750446180019,18.841,2421.3,2421.2,4.13008462]
[1750446180355,18.8997,2421.3,2421.1,4.13033693]
[1750446180515,18.841,2421.3,2421.2,4.13018338]
[1750446180720,18.8997,2421.3,2421.2,4.13018338]
[1750446181370,18.841,2421.3,2421.2,4.13018338]
[1750446183091,20.741,2421.4,2421.3,4.1300128]
[1750446183377,29.584,2421.4,2421.2,4.13009234]
[1750446183584,30.412,2421.4,2420.6,2.67999919]
[1750446183784,0.0587,2421.3,2420.8,4.13077375]
[1750446183951,6.998,2421.2,2420.8,4.13077375]
[1750446184397,10.828,2421.1,2420.3,2.67999919]
[1750446184679,0.0587,2420.6,2420.5,4.13134789]
[1750446184847,8.9017,2420.6,2420.4,4.13145858]
[1750446185049,0.0587,2420.5,2420.4,4.13145858]
[1750446185468,8.843,2420.6,2420.5,4.13137781]
[1750446185992,8.9017,2420.6,2420.5,4.13137781]
[1750446186197,0.0587,2420.5,2420.4,4.13147409]
[1750446186509,0.0587,2420.5,2420.3,4.13162704]
[1750446186719,4.19057045,2420.3,2419.8,7.63127469]
[1750446186996,0.0587,2419.7,2419.2,0.8188]
[1750446187290,0.0587,2419.5,2419.2,0.8188]
[1750446187465,0.0587,2419.3,2418.4,0.7843]
[1750446187668,0.0587,2419.3,2419.2,4.13359788]
[1750446187995,8.9027,2419.3,2418.5,0.2249084]
[1750446188201,10.8045,2419.2,2418.8,4.13424574]
[1750446188892,10.0,2419.2,2418.5,0.2249084]
[1750446189097,10.0,2419.0,2418.8,4.13416238]
[1750446189265,7.0577,2418.9,2418.7,4.13436647]
[1750446189594,0.8632,2419.3,2418.7,5.02516217]
[1750446189793,10.0,2419.1,2419.0,4.13382814]
[1750446190194,10.0,2419.1,2418.9,4.13398849]
[1750446190400,10.0,2419.1,2419.0,4.13393964]
[1750446190962,0.0587,2419.8,2419.5,4.13308534]
[1750446191188,8.9057,2419.7,2419.5,4.1330218]
[1750446191397,8.847,2419.6,2419.5,4.13308534]
[1750446191604,8.847,2419.6,2419.2,4.93669788]
[1750446191898,8.847,2419.6,2419.5,4.13308534]
[1750446194412,8.847,2419.6,2419.2,0.8031]
[1750446194717,0.0587,2419.5,2419.3,4.13333514]
[1750446195276,0.0587,2419.5,2419.2,4.13357035]
[1750446195482,0.7937,2419.7,2418.8,0.8031]
[1750446195720,0.8524,2419.2,2418.5,0.2249084]
[1750446195902,0.8524,2418.6,2418.5,0.2249084]
[1750446196123,17.8594,2418.6,2418.5,0.2249084]
[1750446196505,21.99402333,2418.6,2418.5,0.2249084]
[1750446196712,17.8594,2418.6,2418.5,0.2249084]
[1750446197091,10.75,2418.8,2418.7,4.13445239]
[1750446197397,19.6,2418.8,2418.7,4.13445239]
[1750446197916,0.0587,2418.6,2418.5,0.2249084]
[1750446198111,10.0,2418.7,2418.5,4.35970269]
[1750446198321,8.855,2418.6,2418.5,4.35961431]
[1750446199035,10.75,2418.8,2418.7,4.13445239]
[1750446199192,19.606,2418.8,2418.7,4.13445239]
[1750446199928,19.6647,2418.8,2418.6,4.13454967]
[1750446200222,10.75,2418.8,2418.7,4.13445239]
[1750446200596,19.602,2418.8,2418.7,4.13445239]
[1750446200791,19.603,2418.8,2418.7,4.13445239]
[1750446201838,19.605,2418.8,2418.7,4.13445239]
[1750446202132,19.605,2418.8,2418.7,4.93925239]
[1750446202836,19.604,2418.8,2418.7,4.93925239]
[1750446203419,19.604,2418.8,2418.7,4.13445239]
[1750446203631,0.0587,2418.7,2418.5,4.35968777]
[1750446203849,7.008,2418.6,2418.5,4.35968777]
[1750446205716,7.008,2418.6,2418.5,0.2249084]
[1750446205941,7.07,2418.6,2418.5,0.2249084]
[1750446206342,7.008,2418.6,2418.5,4.35970269]
[1750446206555,10.75,2418.8,2418.6,4.13456648]
[1750446206751,10.75,2418.8,2418.7,4.13445239]
[1750446206962,19.644,2418.8,2418.7,4.13445239]
[1750446207254,19.645,2418.8,2418.7,4.13445239]
[1750446209071,10.75,2418.8,2418.7,4.13445239]
[1750446209272,19.645,2418.8,2418.7,4.13445239]
[1750446209584,19.638,2418.8,2418.7,4.13445239]
[1750446210383,20.07817648,2418.8,2418.6,4.13450558]
[1750446210586,19.638,2418.8,2418.7,4.13445239]
[1750446210888,20.07818024,2418.8,2418.6,4.13452568]
[1750446211033,19.7,2418.8,2418.7,4.13445239]
[1750446211236,19.638,2418.8,2418.7,4.13445239]
[1750446212262,10.75,2418.8,2418.7,4.13445239]
[1750446212464,19.642,2418.8,2418.7,4.93855239]
[1750446212776,20.02162991,2418.8,2418.7,4.93855239]
[1750446212939,20.08362991,2418.8,2418.7,4.13445239]
[1750446213331,19.642,2418.8,2418.7,4.13445239]
[1750446214167,19.704,2418.8,2418.7,4.13445239]
[1750446214382,0.062,2418.7,2418.5,0.2249084]
[1750446214543,7.027,2418.6,2418.5,4.35970269]
[1750446215459,7.027,2418.6,2418.5,0.2249084]
[1750446215665,7.089,2418.6,2418.5,4.35970269]
[1750446216178,10.75,2418.8,2418.6,4.13462333]
[1750446216371,8.879,2418.7,2418.6,4.13462333]
[1750446217070,11.359,2418.7,2418.6,4.13462333]
[1750446217370,8.879,2418.7,2418.6,4.13462333]
[1750446217574,8.886,2418.7,2418.6,4.13454892]
[1750446218072,10.75,2418.8,2418.7,4.13445239]
[1750446218268,19.698,2418.8,2418.7,4.13445239]
[1750446218477,19.696,2418.8,2418.7,4.13445239]
[1750446218855,20.30428352,2418.8,2418.7,4.13445239]
[1750446219798,20.30428352,2418.8,2418.6,4.13452008]
[1750446219993,0.37953268,2418.7,2418.6,4.13452008]
[1750446220354,0.38121467,2418.7,2418.5,0.2249084]
[1750446220653,7.84742623,2418.6,2418.5,4.35955563]
[1750446221087,7.46621467,2418.6,2418.5,4.35955563]
[1750446221291,7.84744846,2418.6,2418.5,0.2249084]
[1750446221787,8.64314846,2418.6,2418.5,0.2249084]
[1750446221990,8.64314846,2418.6,2418.5,4.35970269]
[1750446222190,0.82444846,2418.6,2418.5,4.35970269]
[1750446222364,9.69844846,2418.6,2418.5,4.35970269]
[1750446222688,9.92783734,2418.6,2418.5,4.35970269]
[1750446222893,9.69928321,2418.6,2418.5,4.35970269]
[1750446223074,9.63728321,2418.6,2418.5,4.35970269]
[1750446223281,9.92833786,2418.6,2418.5,0.2249084]
[1750446223692,8.936,2418.6,2418.5,0.2249084]
[1750446223898,9.92831596,2418.6,2418.5,0.2249084]
[1750446224079,42.02665838,2418.6,2418.0,0.11]
[1750446224278,17.47317826,2418.1,2418.0,0.11]
[1750446224601,0.062,2418.0,2417.3,4.17821132]
[1750446224817,5.1357,2418.1,2417.9,4.13582033]
[1750446224975,0.062,2418.1,2418.0,4.13564929]
[1750446225178,0.82479806,2418.1,2417.9,4.13574987]
[1750446225496,9.93764336,2418.0,2417.9,4.13574987]
[1750446225678,0.99164336,2418.0,2417.9,4.13574987]
[1750446226007,9.64779806,2418.0,2417.9,3.68574987]
[1750446226206,1.55847739,2418.0,2417.7,0.04135583]
[1750446226507,1.05352181,2417.9,2417.8,4.13591773]
[1750446226711,0.67216953,2417.9,2417.8,4.13591773]
[1750446227010,1.05350734,2417.9,2417.8,4.13591773]
[1750446227340,1.05350734,2417.9,2417.1,4.13716899]
[1750446227341,0.44335228,2417.9,2417.6,4.13622272]
[1750446227526,7.73735733,2417.8,2417.6,4.13621948]
[1750446227679,0.44300505,2417.7,2417.6,4.13621948]
[1750446227879,0.44301171,2417.7,2417.6,4.13621948]
[1750446228078,0.44301171,2417.7,2417.5,4.13647189]
[1750446228079,0.44300116,2417.7,2417.5,4.13642079]
[1750446228300,7.46800116,2417.6,2417.2,4.88785183]
[1750446228485,7.46797291,2417.5,2417.4,4.13667576]
[1750446228694,0.062,2417.4,2417.2,4.1368947]
[1750446228894,0.062,2417.4,2416.8,4.16689337]
[1750446228895,2.24192091,2417.3,2416.8,0.02935236]
[1750446229107,0.7957,2417.1,2416.8,0.02935236]
[1750446229311,9.31985719,2417.0,2416.9,4.13744974]
[1750446229622,9.33485719,2417.0,2416.9,4.13744974]
[1750446229921,8.954,2417.0,2416.9,4.13744974]
[1750446231145,8.954,2417.0,2416.9,4.13753154]
[1750446231146,8.953,2417.0,2416.9,4.13753154]
[1750446231317,8.953,2417.0,2416.8,4.1670551]
[1750446231499,1.41998697,2417.6,2417.5,4.13650465]
[1750446232010,8.59998697,2417.6,2417.5,4.13650465]
[1750446232414,1.48198697,2417.6,2417.5,4.13650465]
[1750446232610,10.46598697,2417.6,2417.5,4.13650465]
[1750446232933,10.40398697,2417.6,2417.5,4.13650465]
[1750446233132,0.062,2417.5,2416.8,1.22345787]
[1750446233432,0.062,2417.5,2417.4,4.13667576]
[1750446233646,1.41998697,2417.6,2417.5,4.13650465]
[1750446233810,10.41898697,2417.6,2417.5,4.13650465]
[1750446234910,10.47788697,2417.6,2417.5,4.13650465]
[1750446235835,10.41898697,2417.6,2417.5,4.13650465]
[1750446236640,10.47788697,2417.6,2417.5,4.13650465]
[1750446237615,10.47788697,2417.6,2417.5,3.13650465]
[1750446237848,0.0589,2417.5,2417.0,0.7964]
[1750446238153,0.0589,2417.5,2416.8,4.58361071]
[1750446238154,0.7602,2417.5,2417.3,4.13684689]
[1750446238361,9.03,2417.4,2417.3,4.13684689]
[1750446239075,9.03,2417.4,2417.1,4.13715762]
[1750446239227,0.0589,2417.2,2416.8,0.02935236]
[1750446239428,0.0589,2417.0,2416.8,0.02935236]
[1750446239676,3.2311,2417.0,2416.8,0.02935236]
[1750446240029,0.0589,2416.9,2416.8,0.02935236]
[1750446240452,46.67643154,2416.9,2416.8,0.02935236]
[1750446240671,47.43686899,2416.9,2416.8,0.02935236]
[1750446240827,12.96249903,2416.9,2416.8,0.02935236]
[1750446241167,9.065,2416.9,2416.8,4.1670551]
[1750446241677,11.25879596,2417.5,2416.9,4.94723154]
[1750446241678,7.169,2417.0,2416.9,4.94723154]
[1750446241979,1.903,2417.1,2417.0,4.13736036]
[1750446242131,9.074,2417.1,2417.0,4.13736036]
[1750446242463,0.0589,2417.0,2416.8,4.16704415]
[1750446242670,0.0589,2417.0,2416.9,4.13737001]
[1750446242967,0.0589,2417.0,2416.8,0.02935236]
[1750446243268,12.3241,2417.1,2416.8,4.16695621]
[1750446243437,0.0589,2417.0,2416.8,4.16695621]
[1750446243762,0.0589,2417.0,2416.9,4.13753154]
[1750446244130,10.0589,2417.0,2416.8,0.02935236]
[1750446244331,0.8552,2416.9,2416.8,0.02935236]
[1750446245272,14.58318929,2416.9,2416.8,0.02935236]
[1750446245433,26.59973154,2416.9,2416.8,0.02935236]
[1750446245634,57.90919508,2416.9,2416.8,0.02935236]
[1750446246328,57.90919508,2416.9,2416.0,0.2249084]
[1750446246329,7.44420153,2416.1,2416.0,0.2249084]
[1750446246532,23.95699591,2416.1,2416.0,0.2249084]
[1750446246768,37.52920153,2416.1,2416.0,0.2249084]
[1750446246928,65.04920153,2416.1,2416.0,0.2249084]
[1750446247131,30.9113,2416.1,2416.0,0.2249084]
[1750446247332,30.091,2416.1,2416.0,4.36398124]
[1750446247866,30.091,2416.1,2416.0,5.21431493]
[1750446247867,20.091,2416.1,2416.0,5.21431493]
[1750446248163,20.091,2416.1,2416.0,4.36398124]
[1750446248730,10.763,2416.1,2416.0,4.36398124]
[1750446248966,20.087,2416.1,2416.0,4.36398124]
[1750446249741,21.6491,2416.1,2416.0,0.2249084]
[1750446249936,31.0521,2416.1,2416.0,0.2249084]
[1750446250675,35.19100153,2416.1,2416.0,0.2249084]
[1750446250979,35.57021393,2416.1,2416.0,0.2249084]
[1750446251570,31.4313124,2416.1,2416.0,0.2249084]
[1750446251762,22.0283124,2416.1,2416.0,0.2249084]